Workbook

Sheet Estimated Costs
A1: University of Arkansas System Health Benefits Calculator for 2026 Plan Year
A2: Disclaimer: | J2: Hide these rows prior to distribution
A3: The scenarios presented here are illustrative and are only meant to provide a basis for comparison among the three medical plan options. The scenarios are not a guarantee of future results. The actual costs of services may vary depending on when and where services are performed.
A6: Instructions:
A8: First, select your desired coverage election in cell B13 (highlighted blue).
A9: Next, add your monthly employee premium for health insurance for each medical plan option in cells B16, B17, and B18 (highlighted green).
A10: Refer to your campus HR website or contact your campus HR department if you are unsure of your monthly empoyee premium.
A11: The monthly employee premium should be on a 12-month basis.
A13: Choose your coverage election | B13: Employee Only
A15: Enter your monthly premium (12-month basis) for the following plans:
A16: Health Savings Plan | B16: 80 | K16: Activate Macro? | L16: Y
A17: Classic Plan | B17: 100
A18: Premier Plan | B18: 120
A20: You will see how total health care costs compare among each of the medical plan options in two different claim scenarios:
A21: • A "Low Health Care Needs" scenario
A22: • A "High Health Care Needs" scenario
A24: Output: | N24: Prior to release, click this button
A25: Based on your inputs, see below for two examples illustrating your total estimated out-of-pocket expenses under each plan.
A27: Employee Only - Low Health Care Needs | K27: =+IF(OR($B$13="Employee Only",$L$16="N"),1,0) -> 1
K28: 1
A29: ="• 1 preventive doctor’s office visit: "&TEXT(Lists!$C$19,"$0")&" ($0 member cost in-network, since in-network preventive visits are covered at 100%)" -> • 1 preventive doctor’s office visit: $224 ($0 member cost in-network, since in-network preventive visits are covered at 100%) | K29: 1
A30: ="• 1 diagnostic doctor’s office visit: "&TEXT(Lists!$C$20,"$0") -> • 1 diagnostic doctor’s office visit: $165 | K30: 1
A31: ="• 1 Tier-2 antibiotic: "&TEXT(Lists!$C$30,"$0") -> • 1 Tier-2 antibiotic: $227 | K31: 1
K32: 1
A33: Your Annual Costs | K33: 1
B34: Health Savings Plan | C34: Classic Plan | D34: Premier Plan | K34: 1
A35: Preventive visit | B35: 0 | C35: 0 | D35: 0 | K35: 1
A36: Office visit | B36: =+Lists!$C$20 -> 165 | C36: =O46 -> 40 | D36: =P46 -> 30 | K36: 1 | L36: Plan Design Comparison: G:\Pricing & Modeling\12672 - University of Arkansas\Plan Designs
A37: Tier-2 prescription drugs | B37: =+Lists!$C$30 -> 227 | C37: =O53 -> 62 | D37: =P53 -> 57 | K37: 1
A38: Total out-of-pocket expenses | B38: =+SUM(B35:B37) -> 392 | C38: =+SUM(C35:C37) -> 102 | D38: =+SUM(D35:D37) -> 87 | K38: 1 | L38: 2026 Plan Designs
A39: University contribution to Health Savings Account | B39: =+IF($B$13="Employee Only",$N$59,$N$60) -> 650 | C39: N/A | D39: N/A | K39: 1 | N39: Health Savings Plan | O39: Classic Plan | P39: Premier Plan
A40: Employee premium for coverage | B40: =+$B$16*12 -> 960 | C40: =+$B$17*12 -> 1200 | D40: =+$B$18*12 -> 1440 | K40: =+IF(OR($B$13="Employee Only",$L$16="N"),1,0) -> 1 | L40: Medical
A41: Employee net cost | B41: =+B38+B40-B39 -> 702 | C41: =+C38+C40 -> 1302 | D41: =+D38+D40 -> 1527 | K41: 1 | L41: Deductible | M41: Single | N41: 3400 | O41: 1400 | P41: 850
K42: 1 | M42: Family | N42: 6000 | O42: 2800 | P42: 1700
A43: ="Based on these expenses, the lowest-cost option for you would be the "&INDEX(B34:D34,MATCH(MIN(B41:D41),B41:D41,0))&"." -> Based on these expenses, the lowest-cost option for you would be the Health Savings Plan. | K43: 1 | L43: Coinsurance | N43: 0.1 | O43: 0.25 | P43: 0.2
K44: 1 | L44: Out-of-Pocket Maximum | M44: Single | N44: 6750 | O44: 5300 | P44: 3250
K45: 1 | M45: Family | N45: 13300 | O45: 10600 | P45: 6500
A46: Employee Only - High Health Care Needs | K46: 1 | L46: PCP Office Visit | N46: =N43 -> 0.1 | O46: 40 | P46: 30
K47: 1 | L47: Specialist Office Visit | N47: =N43 -> 0.1 | O47: 60 | P47: 50
A48: ="• 1 preventive doctor’s office visit: "&TEXT(Lists!$C$19,"$0")&" ($0 member cost in-network, since in-network preventive visits are covered at 100%)" -> • 1 preventive doctor’s office visit: $224 ($0 member cost in-network, since in-network preventive visits are covered at 100%) | K48: 1
A49: ="• 1 emergency room visit: "&TEXT(Lists!$C$21,"$0,000") -> • 1 emergency room visit: $1,601 | K49: 1 | L49: Prescription Drug | N49: Health Savings Plan | O49: Classic Plan | P49: Premier Plan
A50: ="• 3 days in the hospital: "&TEXT(Lists!$C$22*3,"$0,000") -> • 3 days in the hospital: $10,593 | K50: 1 | L50: Out-of-Pocket Maximum | M50: Single | N50: Combined with Medical | O50: 1800 | P50: 1800
A51: ="• 6 specialist doctor’s office visits: "&TEXT(Lists!$C$23*6,"$000") -> • 6 specialist doctor’s office visits: $990 | K51: 1 | M51: Family | N51: Combined with Medical | O51: 3600 | P51: 3600
A52: ="• 2 Tier-2 antibiotics: "&TEXT(Lists!$C$30*2,"$0") -> • 2 Tier-2 antibiotics: $454 | K52: 1 | L52: Tier 1 Drug | N52: 0.1 | O52: 18 | P52: 14
K53: 1 | L53: Tier 2 Drug | N53: 0.1 | O53: 62 | P53: 57
A54: Your Annual Costs | K54: 1 | L54: Tier 3 Drug | N54: 0.1 | O54: 97 | P54: 92
B55: Health Savings Plan | C55: Classic Plan | D55: Premier Plan | K55: 1
A56: Preventive visit | B56: 0 | C56: 0 | D56: 0 | K56: 1 | L56: Hospical Inpatient Services | M56: Copay, then coinsurance | N56: 0.1 | O56: 300 | P56: 300
A57: Emergency room visit (admitted) | B57: =+Lists!$C$21 -> 1601 | C57: 0 | D57: 0 | K57: 1 | L57: Outpatient Diagnostic Testing and Surgical Services | M57: Copay, then coinsurance | N57: 0.1 | O57: 160 | P57: 80
A58: Hospital stay | B58: =+(N41-B57)+(Lists!$C$22*3-(N41-B57))*N43 -> 2678.4 | C58: =O56+O41+(Lists!$C$22*3-O56-O41)*O43 -> 3923.25 | D58: =P56+P41+(Lists!$C$22*3-P56-P41)*P43 -> 3038.6 | K58: 1
A59: Specialist office visits | B59: =Lists!C23*6*N47 -> 99 | C59: =6*O47 -> 360 | D59: =6*P47 -> 300 | K59: 1 | L59: HSA Contribution | M59: Single | N59: 650
A60: Tier-2 prescriptions drugs | B60: =Lists!C30*N53*2 -> 45.4 | C60: =O53*2 -> 124 | D60: =P53*2 -> 114 | K60: 1 | L60: HSA Contribution | M60: Family | N60: 1200
A61: Total out-of-pocket expenses | B61: =+SUM(B56:B60) -> 4423.8 | C61: =+SUM(C56:C60) -> 4407.25 | D61: =+SUM(D56:D60) -> 3452.6 | K61: 1
A62: University contribution to Health Savings Account | B62: =+IF($B$13="Employee Only",$N$59,$N$60) -> 650 | C62: N/A | D62: N/A | K62: 1
A63: Employee premium for coverage | B63: =+$B$16*12 -> 960 | C63: =+$B$17*12 -> 1200 | D63: =+$B$18*12 -> 1440 | K63: 1 | L63: https://benefits.uasys.edu/uaf/health/health-savings-account
A64: Employee net cost | B64: =+B61+B63-B62 -> 4733.8 | C64: =+C61+C63 -> 5607.25 | D64: =+D61+D63 -> 4892.6 | K64: 1
K65: 1
A66: ="Based on these expenses, the lowest-cost option for you would be the "&INDEX(B55:D55,MATCH(MIN(B64:D64),B64:D64,0))&"." -> Based on these expenses, the lowest-cost option for you would be the Health Savings Plan. | K66: 1
K67: 1
K68: 1
A69: Employee and Spouse - Low Health Care Needs | K69: =+IF(OR($B$13="Employee & Spouse",$L$16="N"),1,0) -> 0
K70: =+IF(OR($B$13="Employee & Spouse",$L$16="N"),1,0) -> 0
A71: Employee's Expenses | K71: 0
A72: ="• 12 Tier 1 drugs: "&TEXT(Lists!$C$29*12,"$0") -> • 12 Tier 1 drugs: $600 | K72: 0
A73: ="• 2 doctor’s office visits: "&TEXT(Lists!$C$20*2,"$0") -> • 2 doctor’s office visits: $330 | K73: 0
A74: ="• 2 specialist doctor’s office visits: "&TEXT(Lists!$C$23*2,"$000") -> • 2 specialist doctor’s office visits: $330 | K74: 0
A75: ="• 1 preventive doctor’s office visit: "&TEXT(Lists!$C$19,"$0")&" ($0 member cost in-network, since in-network preventive visits are covered at 100%)" -> • 1 preventive doctor’s office visit: $224 ($0 member cost in-network, since in-network preventive visits are covered at 100%) | K75: 0
K76: 0
A77: Spouse's Expenses | K77: 0
A78: ="• 6 Tier 1 drugs: "&TEXT(Lists!$C$29*6,"$0") -> • 6 Tier 1 drugs: $300 | K78: 0
A79: ="• 2 doctor’s office visits: "&TEXT(Lists!$C$20*2,"$0") -> • 2 doctor’s office visits: $330 | K79: 0
A80: ="• 2 Tier-2 drugs: "&TEXT(Lists!$C$30*2,"$0") -> • 2 Tier-2 drugs: $454 | K80: 0
A81: ="• 1 preventive doctor’s office visit: "&TEXT(Lists!$C$19,"$0")&" ($0 member cost in-network, since in-network preventive visits are covered at 100%)" -> • 1 preventive doctor’s office visit: $224 ($0 member cost in-network, since in-network preventive visits are covered at 100%) | K81: 0
K82: 0
A83: Your Annual Costs | K83: 0
B84: Health Savings Plan | C84: Classic Plan | D84: Premier Plan | K84: 0
A85: Preventive visits for each family member | B85: 0 | C85: 0 | D85: 0 | K85: 0
A86: Employee's Tier 1 prescription drugs | B86: =+Lists!C29*12 -> 600 | C86: =12*O52 -> 216 | D86: =12*P52 -> 168 | K86: 0
A87: Employee's office visits | B87: =+Lists!C20*2 -> 330 | C87: =2*O46 -> 80 | D87: =2*P46 -> 60 | K87: 0
A88: Employee's specialist office visits | B88: =+Lists!C23*2 -> 330 | C88: =2*O47 -> 120 | D88: =2*P47 -> 100 | K88: 0
A89: Spouse's Tier 1 prescription drugs | B89: =+Lists!C29*6 -> 300 | C89: =6*O52 -> 108 | D89: =6*P52 -> 84 | K89: 0
A90: Spouse's office visits | B90: =+Lists!C20*2 -> 330 | C90: =2*O46 -> 80 | D90: =2*P46 -> 60 | K90: 0
A91: Spouse's Tier 2 prescription drugs | B91: =+Lists!C30*2 -> 454 | C91: =2*O53 -> 124 | D91: =2*P53 -> 114 | K91: 0
A92: Total out-of-pocket expenses | B92: =+SUM(B85:B91) -> 2344 | C92: =+SUM(C85:C91) -> 728 | D92: =+SUM(D85:D91) -> 586 | K92: 0
A93: University contribution to Health Savings Account | B93: =+IF($B$13="Employee Only",$N$59,$N$60) -> 650 | C93: N/A | D93: N/A | K93: 0
A94: Employee premium for coverage | B94: =+$B$16*12 -> 960 | C94: =+$B$17*12 -> 1200 | D94: =+$B$18*12 -> 1440 | K94: 0
A95: Employee net cost | B95: =+B92+B94-B93 -> 2654 | C95: =+C92+C94 -> 1928 | D95: =+D92+D94 -> 2026 | K95: 0
K96: 0
A97: ="Based on these expenses, the lowest cost option for you would be the "&INDEX(B84:D84,MATCH(MIN(B95:D95),B95:D95,0))&"." -> Based on these expenses, the lowest cost option for you would be the Classic Plan. | K97: 0
K98: 0
K99: 0
A100: Employee and Spouse - High Health Care Needs | K100: 0
K101: 0
A102: Spouse's Expenses | K102: 0
A103: ="• 1 ambulance: "&TEXT(Lists!$C$24,"$0,000") -> • 1 ambulance: $1,350 | K103: 0
A104: ="• 1 emergency room visit: "&TEXT(Lists!$C$21,"$0,000") -> • 1 emergency room visit: $1,601 | K104: 0
A105: ="• 4 days in the hospital: "&TEXT(Lists!$C$22*4,"$0,000") -> • 4 days in the hospital: $14,124 | K105: 0
A106: ="• 3 Tier 3 medication: "&TEXT(Lists!$C$31*3,"$0,000") -> • 3 Tier 3 medication: $6,828 | K106: 0
A107: ="• 3 specialist doctor’s office visits: "&TEXT(Lists!$C$23*3,"$0") -> • 3 specialist doctor’s office visits: $495 | K107: 0
A108: ="• 14 physical therapy visits: "&TEXT(Lists!$C$25*14,"$0,000") -> • 14 physical therapy visits: $4,340 | K108: 0
K109: 0
A110: Your Annual Costs | K110: 0
B111: Health Savings Plan | C111: Classic Plan | D111: Premier Plan | K111: 0
A112: Spouse's ambulance | B112: =+Lists!C24 -> 1350 | C112: 0 | D112: 0 | K112: 0
A113: Spouse's emergency room visit (admitted) | B113: =+Lists!C21 -> 1601 | C113: 0 | D113: 0 | K113: 0
A114: Spouse's hospital stay | B114: =+(N41-B113-B112)+(Lists!C22*4-(N41-B113-B112))*N43 -> 1816.5 | C114: =MIN(O56+O41+(Lists!$C$22*4-O56-O41)*O43,O44) -> 4806 | D114: =MIN(P56+P41+(Lists!$C$22*4-P56-P41)*P43,P44) -> 3250 | K114: 0
A115: Spouse's Tier 3 prescription drugs | B115: =Lists!C31*N54*3 -> 682.8 | C115: =O54*3 -> 291 | D115: =P54*3 -> 276 | K115: 0
A116: Spouse's specialist office visits | B116: =Lists!C23*3*N47 -> 49.5 | C116: =MIN(3*O47,MAX(0,O44-C114)) -> 180 | D116: =MIN(3*P47,MAX(0,P44-D114)) -> 0 | K116: 0
A117: Spouse's physical therapy visits | B117: =Lists!C25*14*N43 -> 434 | C117: =MIN(O47+(Lists!$C$25*14-O47)*O43,MAX(O44-C116-C114-C113-C112,0)) -> 314 | D117: =MIN(P47+(Lists!$C$25*14-P47)*P43,MAX(P44-D116-D114-D113-D112,0)) -> 0 | K117: 0
A118: Total out-of-pocket expenses | B118: =+SUM(B112:B117) -> 5933.8 | C118: =+SUM(C112:C117) -> 5591 | D118: =+SUM(D112:D117) -> 3526 | K118: 0
A119: University contribution to Health Savings Account | B119: =+IF($B$13="Employee Only",$N$59,$N$60) -> 650 | C119: N/A | D119: N/A | K119: 0
A120: Employee premium for coverage | B120: =+$B$16*12 -> 960 | C120: =+$B$17*12 -> 1200 | D120: =+$B$18*12 -> 1440 | K120: 0
A121: Employee net cost | B121: =+B118+B120-B119 -> 6243.8 | C121: =+C118+C120 -> 6791 | D121: =+D118+D120 -> 4966 | K121: 0
K122: 0
A123: ="Based on these expenses, the lowest cost option for you would be the "&INDEX(B111:D111,MATCH(MIN(B121:D121),B121:D121,0))&"." -> Based on these expenses, the lowest cost option for you would be the Premier Plan. | K123: 0
K124: 0
K125: 0
A126: Employee and Child - Low Health Care Needs | K126: =+IF(OR($B$13="Employee & Child(ren)",$L$16="N"),1,0) -> 0
K127: =+IF(OR($B$13="Employee & Child(ren)",$L$16="N"),1,0) -> 0
A128: Employee's Expenses | K128: 0
A129: ="• 1 preventive doctor’s office visit: "&TEXT(Lists!$C$19,"$0")&" ($0 member cost in-network, since in-network preventive visits are covered at 100%)" -> • 1 preventive doctor’s office visit: $224 ($0 member cost in-network, since in-network preventive visits are covered at 100%) | K129: 0
A130: ="• 1 doctor’s office visit: "&TEXT(Lists!$C$20,"$0") -> • 1 doctor’s office visit: $165 | K130: 0
A131: ="• 2 Tier 1 drugs: "&TEXT(Lists!$C$29*2,"$0") -> • 2 Tier 1 drugs: $100 | K131: 0
K132: 0
A133: Child's Expenses | K133: 0
A134: ="• 1 preventive doctor’s office visit: "&TEXT(Lists!$C$19,"$0")&" ($0 member cost in-network, since in-network preventive visits are covered at 100%)" -> • 1 preventive doctor’s office visit: $224 ($0 member cost in-network, since in-network preventive visits are covered at 100%) | K134: 0
A135: ="• 1 Tier-2 drug: "&TEXT(Lists!$C$30,"$0") -> • 1 Tier-2 drug: $227 | K135: 0
A136: ="• 2 doctor’s office visits: "&TEXT(Lists!$C$20*2,"$0") -> • 2 doctor’s office visits: $330 | K136: 0
K137: 0
A138: Your Annual Costs | K138: 0
B139: Health Savings Plan | C139: Classic Plan | D139: Premier Plan | K139: 0
A140: Preventive visits for each family member | B140: 0 | C140: 0 | D140: 0 | K140: 0
A141: Employee's office visit | B141: =+Lists!C20 -> 165 | C141: =O46 -> 40 | D141: =P46 -> 30 | K141: 0
A142: Employee's Tier 1 prescription drugs | B142: =+Lists!C29*2 -> 100 | C142: =2*O52 -> 36 | D142: =2*P52 -> 28 | K142: 0
A143: Child's office visits | B143: =+Lists!C20*2 -> 330 | C143: =2*O46 -> 80 | D143: =2*P46 -> 60 | K143: 0
A144: Child's Tier 2 prescription drugs | B144: =+Lists!C30 -> 227 | C144: =O53 -> 62 | D144: =P53 -> 57 | K144: 0
A145: Total out-of-pocket expenses | B145: =+SUM(B140:B144) -> 822 | C145: =+SUM(C140:C144) -> 218 | D145: =+SUM(D140:D144) -> 175 | K145: 0
A146: University contribution to Health Savings Account | B146: =+IF($B$13="Employee Only",$N$59,$N$60) -> 650 | C146: N/A | D146: N/A | K146: 0
A147: Employee premium for coverage | B147: =+$B$16*12 -> 960 | C147: =+$B$17*12 -> 1200 | D147: =+$B$18*12 -> 1440 | K147: 0
A148: Employee net cost | B148: =+B145+B147-B146 -> 1132 | C148: =+C145+C147 -> 1418 | D148: =+D145+D147 -> 1615 | K148: 0
K149: 0
A150: ="Based on these expenses, the lowest cost option for you would be the "&INDEX(B139:D139,MATCH(MIN(B148:D148),B148:D148,0))&"." -> Based on these expenses, the lowest cost option for you would be the Health Savings Plan. | K150: 0
K151: 0
K152: 0
A153: Employee and Children - High Health Care Needs | K153: 0
K154: 0
A155: Employee's Expenses | K155: 0
A156: ="• 1 preventive doctor’s office visit: "&TEXT(Lists!$C$19,"$0")&" ($0 member cost in-network, since in-network preventive visits are covered at 100%)" -> • 1 preventive doctor’s office visit: $224 ($0 member cost in-network, since in-network preventive visits are covered at 100%) | K156: 0
A157: ="• 2 specialist doctor’s office visits: "&TEXT(Lists!$C$23*2,"$000") -> • 2 specialist doctor’s office visits: $330 | K157: 0
A158: ="• 12 Tier 1 drugs: "&TEXT(Lists!$C$29*12,"$0") -> • 12 Tier 1 drugs: $600 | K158: 0
K159: 0
A160: Daughter's Expenses | K160: 0
A161: ="• 1 urgent care visit: "&TEXT(Lists!$C$26,"$0") -> • 1 urgent care visit: $200 | K161: 0
A162: ="• 1 Tier 3 medication: "&TEXT(Lists!$C$31,"$0,000") -> • 1 Tier 3 medication: $2,276 | K162: 0
A163: ="• 4 days in the hospital: "&TEXT(Lists!$C$22*4,"$0,000") -> • 4 days in the hospital: $14,124 | K163: 0
A164: ="• 2 specialist doctor’s office visits: "&TEXT(Lists!$C$23*2,"$000") -> • 2 specialist doctor’s office visits: $330 | K164: 0
K165: 0
A166: Son's Expenses | K166: 0
A167: ="• 2 specialist doctor’s office visits: "&TEXT(Lists!$C$23*2,"$000") -> • 2 specialist doctor’s office visits: $330 | K167: 0
A168: ="• 3 Tier 1 drugs: "&TEXT(Lists!$C$29*3,"$0") -> • 3 Tier 1 drugs: $150 | K168: 0
K169: 0
A170: Your Annual Costs | K170: 0
B171: Health Savings Plan | C171: Classic Plan | D171: Premier Plan | K171: 0
A172: Preventive visits for each family member | B172: 0 | C172: 0 | D172: 0 | K172: 0
A173: Employee's specialist office visits | B173: =+Lists!C23*2 -> 330 | C173: =O47*2 -> 120 | D173: =P47*2 -> 100 | K173: 0
A174: Employee's Tier 1 prescription drugs | B174: =+Lists!C29*12 -> 600 | C174: =O52*12 -> 216 | D174: =P52*12 -> 168 | K174: 0
A175: Daughter's urgent care visit | B175: =+Lists!C26 -> 200 | C175: =O47 -> 60 | D175: =P47 -> 50 | K175: 0
A176: Daughter's Tier 3 prescription drugs | B176: =+Lists!C31 -> 2276 | C176: =O54 -> 97 | D176: =P54 -> 92 | K176: 0
A177: Daughter's hospital stay | B177: =+(N41-B175-B176)+(Lists!$C$22*4-(N41-B175-B176))*N43 -> 2244 | C177: =MIN(O56+O41+(Lists!$C$22*4-O56-O41)*O43,O44-C175) -> 4806 | D177: =MIN(P56+P41+(Lists!$C$22*4-P56-P41)*P43,P44-D175) -> 3200 | K177: 0
A178: Daughter's specialist office visits | B178: =Lists!C23*2*N47 -> 33 | C178: =MIN(2*O47,O44-C175-C177) -> 120 | D178: =MIN(2*P47,P44-D175-D177) -> 0 | K178: 0
A179: Son's specialist office visits | B179: =+Lists!C23*2 -> 330 | C179: =2*O47 -> 120 | D179: =2*P47 -> 100 | K179: 0
A180: Son's Tier 1 prescription drugs | B180: =+Lists!C29*3 -> 150 | C180: =3*O52 -> 54 | D180: =3*P52 -> 42 | K180: 0
A181: Total out-of-pocket expenses | B181: =+SUM(B172:B180) -> 6163 | C181: =+SUM(C172:C180) -> 5593 | D181: =+SUM(D172:D180) -> 3752 | K181: 0
A182: University contribution to Health Savings Account | B182: =+IF($B$13="Employee Only",$N$59,$N$60) -> 650 | C182: N/A | D182: N/A | K182: 0
A183: Employee premium for coverage | B183: =+$B$16*12 -> 960 | C183: =+$B$17*12 -> 1200 | D183: =+$B$18*12 -> 1440 | K183: 0
A184: Employee net cost | B184: =+B181+B183-B182 -> 6473 | C184: =+C181+C183 -> 6793 | D184: =+D181+D183 -> 5192 | K184: 0
K185: 0
A186: ="Based on these expenses, the lowest cost option for you would be the "&INDEX(B171:D171,MATCH(MIN(B184:D184),B184:D184,0))&"." -> Based on these expenses, the lowest cost option for you would be the Premier Plan. | K186: 0
K187: 0
K188: 0
A189: Employee and Family - Low Health Care Needs | K189: =+IF(OR($B$13="Employee & Family",$L$16="N"),1,0) -> 0
K190: =+IF(OR($B$13="Employee & Family",$L$16="N"),1,0) -> 0
A191: Employee's Expenses | K191: 0
A192: ="• 1 doctor’s office visit: "&TEXT(Lists!$C$20,"$0") -> • 1 doctor’s office visit: $165 | K192: 0
A193: ="• 6 Tier 1 drugs: "&TEXT(Lists!$C$29*6,"$0") -> • 6 Tier 1 drugs: $300 | K193: 0
A194: ="• 4 Tier-2 drug: "&TEXT(Lists!$C$30*4,"$0") -> • 4 Tier-2 drug: $908 | K194: 0
K195: 0
A196: Spouse's Expenses | K196: 0
A197: ="• 2 specialist doctor’s office visits: "&TEXT(Lists!$C$23*2,"$000") -> • 2 specialist doctor’s office visits: $330 | K197: 0
A198: ="• 6 Tier-2 drugs: "&TEXT(Lists!$C$30*6,"$0,000") -> • 6 Tier-2 drugs: $1,362 | K198: 0
K199: 0
A200: Daughter's Expenses | K200: 0
A201: ="• 2 Tier 1 drugs: "&TEXT(Lists!$C$29*2,"$0") -> • 2 Tier 1 drugs: $100 | K201: 0
A202: ="• 1 doctor’s office visit: "&TEXT(Lists!$C$20,"$0") -> • 1 doctor’s office visit: $165 | K202: 0
A203: ="• 3 preventive doctor’s office visit: "&TEXT(Lists!$C$19*3,"$0")&" ($0 member cost in-network, since in-network preventive visits are covered at 100%)" -> • 3 preventive doctor’s office visit: $672 ($0 member cost in-network, since in-network preventive visits are covered at 100%) | K203: 0
K204: 0
A205: Your Annual Costs | K205: 0
B206: Health Savings Plan | C206: Classic Plan | D206: Premier Plan | K206: 0
A207: Preventive visits for each family member | B207: 0 | C207: 0 | D207: 0 | K207: 0
A208: Employee's office visit | B208: =+Lists!$C$20 -> 165 | C208: =O$46 -> 40 | D208: =P$46 -> 30 | K208: 0
... 46 more rows

Sheet Lists (hidden)
B2: For HSA | D2: Activate Macro?
B3: Employee Only | D3: Y
B4: Employee & Spouse | D4: N
B5: Employee & Child(ren)
B6: Employee & Family
B11: Password: | C11: SegalUAS20221
C17: 2026 Model
B18: Costs of Services | C18: USE Model | D18: 2023 Model | E18: 2024 Model | F18: 2025 Model | G18: 2026 Model | K18: Assumed Trend
B19: Preventative Office Visit | C19: =INDEX(D19:I19, MATCH($C$17, $D$18:$I$18, 0)) -> 224 | D19: 182 | E19: =+ROUND(D19*(1+$K19),0) -> 195 | F19: =+ROUND(E19*(1+$K19),0) -> 209 | G19: =+ROUND(F19*(1+$K19),0) -> 224 | K19: 0.07
B20: Diagnostic Doctor Office Visit | C20: =INDEX(D20:I20, MATCH($C$17, $D$18:$I$18, 0)) -> 165 | D20: 135 | E20: =+ROUND(D20*(1+$K20),0) -> 144 | F20: 154 | G20: 165 | K20: =+K19 -> 0.07
B21: ER Visit | C21: 1601 | D21: 1307 | E21: 1398 | F21: 1496 | G21: 1601 | K21: =+K20 -> 0.07
B22: 1 Day Hospital Stay | C22: 3531 | D22: 2882 | E22: 3084 | F22: 3300 | G22: 3531 | K22: 0.07
B23: Specialist Diagnostic Doctor Office Visit | C23: 165 | D23: 135 | E23: 144 | F23: 154 | G23: 165 | K23: 0.07
B24: Ambulance | C24: 1350 | D24: 1102 | E24: 1179 | F24: 1262 | G24: 1350 | K24: 0.07
B25: Physical Therapy Visit | C25: 310 | D25: 253 | E25: 271 | F25: 290 | G25: 310 | K25: 0.07
B26: Urgent Care Visit | C26: 200 | D26: 164 | E26: 175 | F26: 187 | G26: 200 | K26: 0.07
B27: Outpatient Surgery | C27: 4095 | D27: 3343 | E27: 3577 | F27: 3827 | G27: 4095 | K27: 0.07
B29: Tier 1 Drug | C29: 50 | D29: 36 | E29: 40 | F29: 45 | G29: 50 | K29: 0.12 | N29: < Trend from 7/1/24 Rate Projections Doc# 6403463
B30: Tier 2 Drug | C30: 227 | D30: 162 | E30: 181 | F30: 203 | G30: 227 | K30: =+K29 -> 0.12
B31: Tier 3 Drug | C31: 2276 | D31: 1620 | E31: 1814 | F31: 2032 | G31: 2276 | K31: =+K30 -> 0.12
